fUST/lending_fUST_20260114
["ID","MTS","AMOUNT","RATE_DAILY","PERIOD"]
[401785449,1768375842093,-558.945426,0.00010478,2]
[401785451,1768375842102,-558.945426,0.00010478,2]
[401785453,1768375842111,-169.19039177,0.0001053,2]
[401785455,1768375842121,-500.0,0.0001053,2]
[401785457,1768375842131,-500.0,0.0001053,2]
[401785459,1768375842140,-500.0,0.0001053,2]
[401785461,1768375842150,-2183.31810187,0.00010531,2]
[401785463,1768375842159,-500.0,0.00010544,2]
[401785465,1768375842168,-151.0,0.00010577,2]
[401785467,1768375842177,-151.0,0.00010577,2]
[401785470,1768375842187,-288.356056,0.00010577,2]
[401785472,1768375842195,-515.23599256,0.00010577,2]
[401785474,1768375842204,-714.87059322,0.00010577,2]
[401785476,1768375842213,-708.30860347,0.00010577,2]
[401785478,1768375842222,-500.0,0.00010579,2]
[401785479,1768375842231,-500.0,0.00010579,2]
[401785481,1768375842240,-500.0,0.00010579,2]
[401785483,1768375842250,-500.0,0.00010579,2]
[401785485,1768375842263,-500.0,0.00010579,2]
[401785487,1768375842272,-500.0,0.00010579,2]
[401785490,1768375842282,-959.0,0.00010579,2]
[401785492,1768375842291,-500.0,0.00010579,2]
[401785494,1768375842301,-500.0,0.00010579,2]
[401785496,1768375842311,-500.0,0.00010579,2]
[401785498,1768375842322,-261.62124068,0.00010579,2]
[401785499,1768375842335,-548.0,0.00010579,2]
[401785501,1768375842345,-500.0,0.00010579,2]
[401785503,1768375842354,-2264.10087164,0.00010586,2]
[401785506,1768375842364,-203.48424183,0.00010634,2]
[401785508,1768375842373,-303.61,0.00010639,2]
[401785510,1768375842382,-303.61,0.00010639,2]
[401785511,1768375842392,-303.61,0.00010639,2]
[401785514,1768375842402,-303.61,0.00010639,2]
[401785516,1768375842412,-303.61,0.00010639,2]
[401785517,1768375842423,-303.61,0.00010639,2]
[401785519,1768375842435,-303.61,0.00010639,2]
[401785522,1768375842444,-173.48,0.00010639,2]
[401785524,1768375842453,-2347.87260389,0.00010641,2]
[401785527,1768375842463,-171.73,0.00010646,2]
[401785529,1768375842473,-2916.3971575,0.00010659,2]
[401785533,1768375842483,-434.20694637,0.00010667,2]
[401785535,1768375842492,-205.2748173,0.00010667,2]
[401785538,1768375842501,-273.07322793,0.00010667,2]
[401785541,1768375842511,-500.0,0.00010667,2]
[401785544,1768375842520,-9445.38552344,0.0001069,2]
[401785546,1768375842530,-500.0,0.00010695,2]
[401785548,1768375842539,-2434.74389024,0.00010696,2]
[401785549,1768375842548,-262.94,0.00010699,2]
[401785551,1768375842559,-304.7006693,0.000107,2]
[401785554,1768375842569,-601.8345168,0.000107,2]
[401785556,1768375842578,-304.7006693,0.000107,2]
[401785558,1768375842589,-386.5787481,0.000107,2]
[401785560,1768375842598,-500.0,0.00010716,2]
[401785562,1768375842607,-243.82980622,0.00010716,2]
[401785564,1768375842618,-500.0,0.00010716,2]
[401785565,1768375842628,-193.882904,0.00010716,2]
[401785567,1768375842637,-618.64999889,0.00010716,2]
[401785569,1768375842646,-500.0,0.00010716,2]
[401785571,1768375842655,-208.93752748,0.00010716,2]
[401785573,1768375842664,-153.07544209,0.00010716,2]
[401785575,1768375842674,-500.0,0.00010716,2]
[401785577,1768375842684,-959.0,0.00010716,2]
[401785579,1768375842694,-500.0,0.00010716,2]
[401785582,1768375842704,-500.0,0.00010716,2]
[401785584,1768375842713,-500.0,0.00010716,2]
[401785596,1768375842810,-548.0,0.00010716,2]
[401785598,1768375842831,-500.0,0.00010716,2]
[401785600,1768375842840,-558.945426,0.00010716,2]
[401785602,1768375842850,-558.945426,0.00010716,2]
[401785604,1768375842859,-558.945426,0.00010716,2]
[401785606,1768375842868,-558.945426,0.00010716,2]
[401785608,1768375842877,-2058.88302625,0.00010722,2]
[401785610,1768375842887,-2916.3971575,0.00010732,2]
[401785612,1768375842896,-2524.82941417,0.00010751,2]
[401785614,1768375842905,-51789.38974021,0.00010773,2]
[401785616,1768375842914,-151.0,0.00010773,2]
[401785618,1768375842923,-153.708068,0.00010773,2]
[401785620,1768375842932,-558.945426,0.00010773,2]
[401785622,1768375842941,-558.945426,0.00010773,2]
[401785624,1768375842950,-558.945426,0.00010773,2]
[401785626,1768375842959,-558.945436,0.00010773,2]
[401785628,1768375842968,-1001.001001,0.00010798,2]
[401785630,1768375842977,-304.7006693,0.000108,2]
[401785633,1768375842987,-601.8345168,0.000108,2]
[401785635,1768375842996,-304.7006693,0.000108,2]
[401785637,1768375843005,-376.8200359,0.000108,2]
[401785638,1768375843014,-304.7006693,0.000108,2]
[401785640,1768375843024,-304.7006693,0.000108,2]
[401785642,1768375843033,-313.1231021,0.000108,2]
[401785645,1768375843042,-153.27960824,0.00010804,2]
[401785646,1768375843052,-179.83086986,0.00010804,2]
[401785649,1768375843062,-203.89728438,0.00010804,2]
[401785650,1768375843070,-500.0,0.00010804,2]
[401785652,1768375843079,-2618.2481025,0.00010806,2]
[401785654,1768375843088,-800.0,0.00010814,2]
[401785656,1768375843098,-500.0,0.00010818,2]
[401785658,1768375843107,-626.48466171,0.00010843,2]
[401785660,1768375843117,-500.0,0.00010853,2]
[401785662,1768375843126,-500.0,0.00010853,2]
[401785664,1768375843136,-500.0,0.00010853,2]
[401785666,1768375843145,-612.39275147,0.00010853,2]
[401785668,1768375843155,-959.0,0.00010853,2]
[401785670,1768375843164,-500.0,0.00010853,2]
[401785672,1768375843173,-315.80108301,0.00010853,2]
[401785674,1768375843183,-548.0,0.00010853,2]
[401785676,1768375843192,-479.19406929,0.00010853,2]
[401785678,1768375843201,-2715.12328229,0.00010861,2]
[401785680,1768375843210,-198.45143648,0.00010872,2]
[401785682,1768375843219,-173.51533829,0.00010876,2]
[401785684,1768375843229,-159.01062501,0.00010892,2]
[401785686,1768375843238,-193.0411792,0.000109,2]
[401785688,1768375843248,-304.7006693,0.000109,2]
[401785690,1768375843261,-455.297749,0.000109,2]
[401785692,1768375843270,-763.0392162,0.000109,2]
[401785694,1768375843279,-304.7006693,0.000109,2]
[401785696,1768375843289,-191.8411722,0.000109,2]
[401785698,1768375843298,-189.4417879,0.000109,2]
[401785700,1768375843307,-155.7204807,0.000109,2]
[401785702,1768375843316,-637.7358912,0.000109,2]
[401785704,1768375843326,-304.7006693,0.000109,2]
[401785705,1768375843335,-601.8345168,0.000109,2]
[401785707,1768375843344,-800.0,0.00010901,2]
[401785709,1768375843354,-800.0,0.00010905,2]
[401785711,1768375843363,-2312.83697232,0.00010914,2]
[401785713,1768375843373,-2815.58284374,0.00010916,2]
[401785715,1768375843382,-31110.0,0.00010919,2]
[401785717,1768375843391,-323.39571937,0.00010919,2]
[401785719,1768375843402,-171.75936964,0.0001092,2]
[401785721,1768375843412,-478.75725327,0.00010921,2]
[401785723,1768375843420,-151.66015301,0.00010921,2]
[401785725,1768375843430,-800.0,0.00010939,2]
[401785727,1768375843439,-251.8063765,0.00010941,2]
[401785729,1768375843448,-150.64938563,0.00010941,2]
[401785731,1768375843458,-500.0,0.00010941,2]
[401785733,1768375843466,-999.0,0.00010959,2]
[401785735,1768375843476,-7232.1006344,0.00010959,2]
[401785737,1768375843485,-179.2720331,0.00010959,2]
[401785739,1768375843495,-151.0,0.00010959,2]
[401785741,1768375843505,-1500.0,0.00010959,2]
[401785743,1768375843514,-800.0,0.00010964,2]
[401785745,1768375843523,-250.0,0.00010966,2]
[401785747,1768375843532,-800.0,0.00010966,2]
[401785749,1768375843541,-2919.75940895,0.00010971,2]
[401785751,1768375843550,-173.65404874,0.0001099,2]
[401785753,1768375843560,-500.0,0.0001099,2]
[401785755,1768375843569,-500.0,0.0001099,2]
[401785757,1768375843579,-500.0,0.0001099,2]
[401785759,1768375843588,-959.0,0.0001099,2]
[401785761,1768375843597,-500.0,0.0001099,2]
[401785762,1768375843607,-548.0,0.0001099,2]
[401785764,1768375843616,-7716.3482948,0.00010999,2]
[401785767,1768375843626,-261199.97113978,0.00011,2]
[401785770,1768375843646,-9121.0578579,0.00011,2]
[401785772,1768375843657,-13071.54424423,0.00011,2]
[401785774,1768375843673,-51351.53734851,0.00011,2]
[401785776,1768375843682,-451.13,0.00011,2]
[401785778,1768375843692,-151.0,0.00011,2]
[401785780,1768375843701,-151.0,0.00011,2]
[401785782,1768375843710,-830.40155894,0.00011009,2]
[401785784,1768375843719,-800.0,0.00011009,2]
[401785786,1768375843728,-500.0,0.00011009,2]
[401785787,1768375843737,-500.0,0.00011009,2]
[401785789,1768375843746,-500.0,0.00011009,2]
[401785791,1768375843755,-500.0,0.00011009,2]
[401785793,1768375843765,-500.0,0.00011009,2]
[401785795,1768375843774,-500.0,0.00011009,2]
[401785797,1768375843783,-500.0,0.00011009,2]
[401785799,1768375843793,-500.0,0.00011009,2]
[401785801,1768375843802,-500.0,0.00011009,2]
[401785803,1768375843812,-500.0,0.00011009,2]
[401785805,1768375843821,-500.0,0.00011009,2]
[401785807,1768375843831,-500.0,0.00011009,2]
[401785809,1768375843840,-500.0,0.00011009,2]
[401785811,1768375843849,-500.0,0.00011009,2]
[401785813,1768375843859,-800.0,0.00011019,2]
[401785815,1768375843870,-3027.79050709,0.00011026,2]
[401785817,1768375843880,-800.0,0.0001104,2]
[401785819,1768375843890,-2916.3971575,0.00011041,2]
[401785821,1768375843899,-800.0,0.00011046,2]
[401785823,1768375843909,-800.0,0.00011063,2]
[401785825,1768375843919,-500.0,0.00011078,2]
[401785827,1768375843929,-359.99969985,0.00011078,2]
[401785829,1768375843938,-3139.81875585,0.00011081,2]
[401785831,1768375843947,-500.0,0.00011092,2]
[401785833,1768375843957,-500.0,0.00011127,2]
[401785835,1768375843966,-500.0,0.00011127,2]
[401785837,1768375843976,-500.0,0.00011127,2]
[401785839,1768375843985,-959.0,0.00011127,2]
[401785841,1768375843995,-500.0,0.00011127,2]
[401785843,1768375844004,-548.0,0.00011127,2]
[401785845,1768375844013,-3255.99204981,0.00011136,2]
[401785847,1768375844022,-629.0,0.00011159,2]
[401785849,1768375844032,-1367.0,0.00011159,2]
[401785851,1768375844041,-430.0,0.00011159,2]
[401785853,1768375844050,-417.0,0.00011159,2]
[401785855,1768375844060,-772.303,0.00011159,2]
[401785857,1768375844069,-197.967,0.00011159,2]
[401785859,1768375844079,-3304.1969541,0.00011191,2]
[401785860,1768375844088,-2833.2344139,0.00011201,2]
[401785862,1768375844097,-500.0,0.00011215,2]
[401785864,1768375844106,-214.68548572,0.00011244,2]
[401785866,1768375844115,-153.0,0.00011244,2]
[401785868,1768375844124,-153.0,0.00011244,2]
[401785870,1768375844133,-153.0,0.00011244,2]
[401785872,1768375844142,-297.555258,0.00011244,2]
[401785874,1768375844151,-161.75181872,0.00011244,2]
[401785876,1768375844160,-164.0,0.00011244,2]
[401785878,1768375844170,-205.22396769,0.00011244,2]
[401785880,1768375844179,-2856.6228905,0.00011254,2]
[401785882,1768375844189,-175.48644191,0.00011264,2]
[401785884,1768375844197,-603.10014775,0.00011264,2]
[401785886,1768375844207,-500.0,0.00011264,2]
[401785888,1768375844217,-959.0,0.00011264,2]
[401785890,1768375844226,-580.25340699,0.00011264,2]
[401785892,1768375844235,-548.0,0.00011264,2]
[401785894,1768375844244,-540.90054673,0.00011293,2]
[401785896,1768375844257,-420.0,0.00011293,2]
[401785898,1768375844266,-420.0,0.00011293,2]
[401785900,1768375844275,-420.0,0.00011293,2]
[401785902,1768375844285,-420.0,0.00011293,2]
[401785904,1768375844294,-1649.1500613,0.00011294,10]
[401785906,1768375844303,-166.0,0.00011294,2]
[401785908,1768375844312,-166.0,0.00011294,2]
[401785910,1768375844322,-379.59780317,0.00011294,2]
[401785912,1768375844332,-166.0,0.00011294,2]
[401785913,1768375844341,-164.0,0.00011294,2]
[401785915,1768375844351,-164.0,0.00011294,2]
[401785917,1768375844360,-153.0,0.00011294,2]
[401785919,1768375844369,-153.0,0.00011294,2]
[401785921,1768375844378,-151.76020453,0.00011294,2]
[401785923,1768375844388,-153.0,0.00011294,2]
[401785925,1768375844396,-183.96779795,0.00011294,2]
[401785927,1768375844405,-1680.0,0.00011296,2]
[401785929,1768375844414,-778.0,0.000113,2]
[401785931,1768375844423,-2116.26006047,0.000113,2]
[401785933,1768375844433,-2501.830038,0.000113,2]
[401785935,1768375844443,-150.294,0.00011326,2]
[401785937,1768375844452,-150.307,0.00011326,2]
[401785939,1768375844461,-160.95406782,0.00011352,2]
[401785941,1768375844470,-500.0,0.00011366,2]
[401785943,1768375844481,-14150.53090947,0.00011375,2]
[401785945,1768375844491,-2317.109994,0.00011375,2]
[401785947,1768375844500,-2916.3971575,0.00011379,2]
[401785949,1768375844509,-500.0,0.00011401,2]
[401785951,1768375844520,-959.0,0.00011401,2]
[401785953,1768375844530,-548.0,0.00011401,2]
[401785955,1768375844539,-155.83058135,0.00011411,2]
[401785957,1768375844549,-2398.4119403,0.00011462,2]
[401785959,1768375844558,-560.296398,0.00011462,2]
[401785961,1768375844567,-69329.499048,0.00011462,2]
[401785963,1768375844577,-6215.488228,0.00011466,2]
[401785965,1768375844586,-32261.07,0.00011467,2]
[401785967,1768375844595,-335.36136099,0.00011467,2]
[401785969,1768375844604,-496.47127164,0.00011469,2]
[401785971,1768375844614,-149714.36629,0.00011473,2]
[401785973,1768375844623,-151.0,0.00011475,2]
[401785975,1768375844633,-500.0,0.00011538,2]
[401785977,1768375844644,-959.0,0.00011538,2]
[401785979,1768375844654,-548.0,0.00011538,2]
[401785981,1768375844663,-652.27923705,0.00011553,2]
[401785983,1768375844672,-500.0,0.0001159,2]
[401785985,1768375844681,-349.70961451,0.00011594,2]
[401785987,1768375844690,-300.0,0.00011635,2]
[401785989,1768375844699,-300.0,0.00011635,2]
[401785991,1768375844709,-300.0,0.00011635,2]
[401785993,1768375844718,-300.0,0.00011635,2]
[401785995,1768375844727,-300.0,0.00011635,2]
[401785997,1768375844736,-300.0,0.00011635,2]
[401785999,1768375844745,-300.0,0.00011635,2]
[401786001,1768375844755,-300.0,0.00011635,2]
[401786003,1768375844764,-300.0,0.00011635,2]
[401786005,1768375844773,-300.0,0.00011635,2]
[401786006,1768375844782,-300.0,0.00011635,2]
[401786008,1768375844791,-300.0,0.00011635,2]
[401786010,1768375844800,-300.0,0.00011635,2]
[401786012,1768375844809,-300.0,0.00011635,2]
[401786014,1768375844818,-300.0,0.00011635,2]
[401786016,1768375844827,-600.0,0.00011635,2]
[401786018,1768375844836,-6359.50365584,0.00011635,2]
[401786020,1768375844845,-500.0,0.0001164,2]
[401786022,1768375844855,-500.0,0.00011675,2]
[401786024,1768375844865,-959.0,0.00011675,2]
[401786026,1768375844875,-548.0,0.00011675,2]
[401786028,1768375844885,-281.0,0.000118,2]
[401786030,1768375844894,-410.85131619,0.00011812,2]
[401786032,1768375844903,-959.0,0.00011812,2]
[401786034,1768375844912,-548.0,0.00011812,2]
[401786036,1768375844921,-6368.40265384,0.00011828,2]
[401786038,1768375844931,-170.07172297,0.000119,2]
[401786040,1768375844940,-500.0,0.00011914,2]
[401786042,1768375844949,-959.0,0.00011949,2]
[401786044,1768375844959,-548.0,0.00011949,2]
[401786046,1768375844969,-163.586395,0.00011958,2]
[401786048,1768375844978,-42029.9623002,0.00011972,2]
[401786050,1768375844988,-36019.45700168,0.00012,2]
[401786052,1768375844997,-336.42854335,0.00012,2]
[401786054,1768375845006,-551.1733503,0.00012,2]
[401786056,1768375845016,-2487.15318209,0.0001201,2]
[401786058,1768375845025,-11910.69041025,0.00012015,2]
[401786060,1768375845035,-347.76973134,0.00012015,2]
[401786062,1768375845044,-1601.867491,0.00012017,2]
[401786064,1768375845053,-7036.888761,0.00012017,2]
[401786066,1768375845062,-514.84070869,0.00012017,2]
[401786068,1768375845071,-11553.923078,0.00012022,2]
[401786070,1768375845080,-2946.62990631,0.00012022,2]
[401786072,1768375845089,-983.42818593,0.00012023,2]
[401786074,1768375845099,-3681.396827,0.00012077,2]
[401786076,1768375845108,-622.77488969,0.00012081,2]
[401786078,1768375845117,-2285.907246,0.00012086,2]
[401786080,1768375845126,-959.0,0.00012086,2]
[401786082,1768375845136,-548.0,0.00012086,2]
[401786084,1768375845146,-262.94,0.00012132,2]
[401786086,1768375845155,-500.0,0.00012188,2]
[401786088,1768375845164,-1558.449236,0.00012206,2]
[401786100,1768375845269,-4274.205092,0.00012206,2]
[401786102,1768375845278,-474.032522,0.00012223,2]
[401786104,1768375845287,-959.0,0.00012223,2]
[401786106,1768375845298,-548.0,0.00012223,2]
[401786108,1768375845306,-794.42483846,0.00012245,2]
[401786110,1768375845316,-2609.1169482,0.00012298,2]
[401786112,1768375845326,-1789.456661,0.00012311,2]
[401786114,1768375845335,-27100.58585,0.00012311,2]
[401786116,1768375845344,-5370.64,0.00012329,2]
[401786118,1768375845353,-4475.53,0.00012329,2]
[401786120,1768375845362,-3859.78,0.00012329,2]
[401786122,1768375845372,-3216.48,0.00012329,2]
[401786124,1768375845381,-2680.4,0.00012329,2]
[401786126,1768375845390,-2233.67,0.00012329,2]
[401786128,1768375845399,-1861.39,0.00012329,2]
[401786130,1768375845408,-1551.16,0.00012329,2]
[401786132,1768375845417,-1292.63,0.00012329,2]
[401786134,1768375845426,-1077.19,0.00012329,2]
[401786136,1768375845436,-897.66,0.00012329,2]
[401786138,1768375845445,-748.05,0.00012329,2]
[401786140,1768375845454,-623.38,0.00012329,2]
[401786142,1768375845464,-519.48,0.00012329,2]
[401786144,1768375845473,-432.9,0.00012329,2]
[401786146,1768375845483,-360.75,0.00012329,2]
[401786148,1768375845492,-300.62,0.00012329,2]
[401786150,1768375845500,-250.52,0.00012329,2]
[401786152,1768375845510,-208.77,0.00012329,2]
[401786154,1768375845519,-173.97,0.00012329,2]
[401786156,1768375845527,-869.89,0.00012329,2]
[401786158,1768375845538,-1117.38252272,0.00012329,2]
[401786160,1768375845547,-1117.38252272,0.00012329,2]
[401786162,1768375845556,-1117.38252272,0.00012329,2]
[401786164,1768375845566,-1117.38252272,0.00012329,2]
[401786166,1768375845575,-1117.38252272,0.00012329,2]
[401786168,1768375845584,-1117.38252272,0.00012329,2]
[401786170,1768375845593,-1117.38252272,0.00012329,2]
[401786172,1768375845603,-1117.38252272,0.00012329,2]
[401786174,1768375845612,-1117.38252272,0.00012329,2]
[401786176,1768375845622,-1117.38252272,0.00012329,2]
[401786179,1768375845632,-1117.38252272,0.00012329,2]
[401786181,1768375845641,-1117.38252272,0.00012329,2]
[401786183,1768375845650,-1117.38252272,0.00012329,2]
[401786184,1768375845659,-1117.38252272,0.00012329,2]
[401786186,1768375845668,-1117.38252272,0.00012329,2]
[401786188,1768375845677,-1117.38252272,0.00012329,2]
[401786190,1768375845685,-1117.38252272,0.00012329,2]
[401786192,1768375845694,-1117.38252272,0.00012329,2]
[401786194,1768375845703,-1117.38252272,0.00012329,2]
[401786196,1768375845712,-1117.38252272,0.00012329,2]
[401786198,1768375845722,-1117.38252272,0.00012329,2]
[401786200,1768375845730,-1117.38252272,0.00012329,2]
[401786202,1768375845740,-1117.38252272,0.00012329,2]
[401786204,1768375845749,-1117.38252272,0.00012329,2]
[401786206,1768375845758,-1117.38252272,0.00012329,2]
[401786208,1768375845767,-1117.38252272,0.00012329,2]
[401786210,1768375845775,-1117.38252272,0.00012329,2]
[401786212,1768375845785,-1117.38252272,0.00012329,2]
[401786214,1768375845794,-1117.38252272,0.00012329,2]
[401786216,1768375845803,-1117.38252272,0.00012329,2]
[401786218,1768375845813,-1117.38252272,0.00012329,2]
[401786220,1768375845822,-1117.38252272,0.00012329,2]
[401786222,1768375845832,-1117.38252272,0.00012329,2]
[401786224,1768375845842,-1117.38252272,0.00012329,2]
[401786226,1768375845851,-1117.38252272,0.00012329,2]
[401786228,1768375845861,-1117.38252272,0.00012329,2]
[401786230,1768375845872,-1117.38252272,0.00012329,2]
[401786231,1768375845881,-1117.38252272,0.00012329,2]
[401786232,1768375845891,-1117.38252272,0.00012329,2]
[401786233,1768375845901,-1117.38252272,0.00012329,2]
[401786234,1768375845911,-1117.38252272,0.00012329,2]
[401786235,1768375845921,-1117.38252272,0.00012329,2]
[401786236,1768375845931,-1117.38252272,0.00012329,2]
[401786237,1768375845940,-1117.38252272,0.00012329,2]
[401786238,1768375845950,-1117.38252272,0.00012329,2]
[401786239,1768375845960,-1117.38252272,0.00012329,2]
[401786240,1768375845969,-1117.38252272,0.00012329,2]
[401786241,1768375845979,-1117.38252272,0.00012329,2]
[401786242,1768375845988,-1117.38252272,0.00012329,2]
[401786243,1768375845998,-1117.38252272,0.00012329,2]
[401786244,1768375846009,-1117.38252272,0.00012329,2]
[401786245,1768375846018,-3528.994194,0.00012353,2]
[401786246,1768375846027,-959.0,0.0001236,2]
[401786247,1768375846036,-548.0,0.0001236,2]
[401786248,1768375846045,-245.21476845,0.00012409,2]
[401786249,1768375846054,-63790.106977,0.00012409,2]
[401786250,1768375846063,-175.27957802,0.00012416,2]
[401786251,1768375846073,-587.0,0.00012419,2]
[401786253,1768375846082,-587.0,0.00012419,2]
[401786254,1768375846091,-587.0,0.00012419,2]
[401786256,1768375846100,-504.0,0.00012419,2]
[401786258,1768375846109,-2351.0,0.00012426,2]
[401786260,1768375846118,-500.0,0.00012462,2]
[401786262,1768375846127,-399.51976252,0.00012484,2]
[401786264,1768375846136,-959.0,0.00012497,2]
[401786266,1768375846145,-548.0,0.00012497,2]
[401786268,1768375846155,-3521.30514597,0.000125,2]
[401786270,1768375846164,-2093.393552,0.000125,2]
[401786272,1768375846174,-13557.65835514,0.000125,2]
[401786274,1768375846184,-2579.17784983,0.00012558,2]
[401786276,1768375846193,-239.82591767,0.00012563,2]
[401786278,1768375846202,-533.88981491,0.00012565,2]
[401786280,1768375846211,-1017.16536898,0.000126,2]
[401786282,1768375846220,-160.34,0.00012625,2]
[401786284,1768375846229,-959.0,0.00012634,2]
[401786286,1768375846238,-548.0,0.00012634,2]
[401786288,1768375846249,-491.12165105,0.00012639,7]
[401786290,1768375846263,-500.0,0.00012736,2]
[401786291,1768375846272,-959.0,0.00012771,2]
[401786293,1768375846281,-548.0,0.00012771,2]
[401786295,1768375846290,-235.0,0.00012784,2]
[401786297,1768375846299,-3408.538253,0.00012788,2]
[401786299,1768375846308,-720.0,0.00012799,2]
[401786301,1768375846317,-865.22365068,0.00012839,2]
[401786303,1768375846333,-6517.92197,0.0001284,2]
[401786305,1768375846342,-2491.09955875,0.00012863,2]
[401786307,1768375846353,-728.0,0.00012893,2]
[401786309,1768375846364,-728.0,0.00012893,2]
[401786311,1768375846373,-732.0,0.00012893,2]
[401786313,1768375846382,-160.0,0.00012893,2]
[401786315,1768375846392,-18780.42235649,0.000129,2]
[401786317,1768375846401,-517.92266246,0.00012901,2]
[401786319,1768375846411,-959.0,0.00012908,2]
[401786321,1768375846420,-548.0,0.00012908,2]
[401786323,1768375846430,-728.0,0.00012916,2]
[401786325,1768375846440,-1581.938959,0.00012972,2]
[401786327,1768375846449,-1042.429182,0.00012995,2]
[401786329,1768375846458,-500.0,0.00012999,2]
[401786331,1768375846468,-317.54411539,0.00013,2]
[401786333,1768375846478,-500.0,0.00013,2]
[401786335,1768375846488,-246.05048425,0.00013,3]
[401786337,1768375846497,-800.0,0.00013,2]
[401786339,1768375846506,-500.0,0.0001301,2]
[401786341,1768375846515,-1500.0,0.0001301,2]
[401786343,1768375846524,-5864.64262032,0.00013041,2]
[401786345,1768375846534,-959.0,0.00013045,2]
[401786347,1768375846543,-548.0,0.00013045,2]
[401786349,1768375846552,-1397.43961957,0.00013046,2]
[401786351,1768375846562,-965.462497,0.00013081,2]
[401786353,1768375846571,-2674.60743027,0.00013106,2]
[401786355,1768375846580,-553.64373807,0.00013113,2]
[401786357,1768375846590,-262.94,0.00013138,2]
[401786359,1768375846599,-28887.29127,0.00013181,2]
[401786361,1768375846608,-959.0,0.00013182,2]
[401786363,1768375846618,-548.0,0.00013182,2]
[401786365,1768375846627,-500.0,0.000132,2]
[401786367,1768375846635,-992.48,0.000132,2]
[401786369,1768375846644,-184.3704767,0.00013213,2]
[401786371,1768375846654,-491.12165105,0.00013256,8]
[401786373,1768375846664,-728.0,0.00013263,2]
[401786375,1768375846673,-167.63409657,0.00013273,2]
[401786377,1768375846682,-500.0,0.00013273,2]
[401786379,1768375846691,-547.00656757,0.00013273,2]
[401786381,1768375846701,-500.18250774,0.00013273,2]
[401786383,1768375846711,-500.49098579,0.00013273,2]
[401786385,1768375846721,-500.0,0.00013273,2]
[401786387,1768375846730,-500.0,0.00013273,2]
[401786389,1768375846740,-500.0,0.00013273,2]
[401786391,1768375846751,-500.0,0.00013273,2]
[401786393,1768375846760,-500.0,0.00013273,2]
[401786395,1768375846769,-500.0,0.00013273,2]
[401786397,1768375846779,-500.0,0.00013273,2]
[401786399,1768375846788,-501.85584568,0.00013273,2]
[401786401,1768375846797,-500.0,0.00013273,2]
[401786403,1768375846806,-500.0,0.00013273,2]
[401786405,1768375846815,-500.0,0.00013273,2]
[401786407,1768375846824,-500.0,0.00013273,2]
[401786409,1768375846835,-500.0,0.00013273,2]
[401786411,1768375846845,-500.0,0.00013273,2]
[401786413,1768375846854,-500.0,0.00013273,2]
[401786415,1768375846863,-500.0,0.00013273,2]
[401786416,1768375846872,-502.6289906,0.00013273,2]
[401786418,1768375846882,-500.0,0.00013273,2]
[401786420,1768375846891,-500.0,0.00013273,2]
[401786422,1768375846900,-500.0,0.00013273,2]
[401786424,1768375846909,-500.21355158,0.00013273,2]
[401786426,1768375846918,-500.0,0.00013273,2]
[401786428,1768375846927,-500.0,0.00013273,2]
[401786430,1768375846937,-500.0,0.00013273,2]
[401786432,1768375846946,-500.0,0.00013273,2]
[401786434,1768375846956,-500.0,0.00013273,2]
[401786436,1768375846964,-500.0,0.00013273,2]
[401786438,1768375846974,-500.0,0.00013273,2]
[401786440,1768375846983,-500.0,0.00013273,2]
[401786442,1768375846992,-500.0,0.00013273,2]
[401786444,1768375847002,-500.28056306,0.00013273,2]
[401786446,1768375847011,-500.0,0.00013273,2]